bitfinex-derivatives/quotes_SOLF0:USTF0_20250117
["timestamp","ask_amount","ask_price","bid_price","bid_amount"]
[1737130426802,7.6715,219.61,219.49,10.97857783]
[1737130427002,3.1191,219.61,219.49,10.97857783]
[1737130427203,3.1191,219.61,219.52,10.97857783]
[1737130427398,3.1191,219.61,219.6,4.5525]
[1737130428202,1.4417,219.64,219.53,4.98]
[1737130428503,9.88156444,219.71,219.61,10.97857783]
[1737130428708,8.35916444,219.71,219.62,5.0]
[1737130428902,200.12416778,219.76,219.64,10.97857783]
[1737130428903,192.22408995,219.76,219.64,10.97857783]
[1737130429100,0.73595747,219.75,219.64,10.97857783]
[1737130429302,3.0785,219.76,219.64,10.97857783]
[1737130429603,3.0785,219.76,219.62,5.0]
[1737130429604,0.73592436,219.75,219.62,5.0]
[1737130430907,4.5502,219.72,219.65,4.5515]
[1737130431704,4.5503,219.72,219.65,4.5515]
[1737130432407,4.5499,219.73,219.65,10.97857783]
[1737130432909,4.5501,219.72,219.67,4.5511]
[1737130433705,3.0785,219.76,219.65,4.5513]
[1737130433706,4.5503,219.71,219.65,4.5513]
[1737130433908,4.5503,219.71,219.62,15.97857783]
[1737130434107,4.5503,219.71,219.64,4.5516]
[1737130434309,4.5501,219.72,219.62,15.97857783]
[1737130434708,4.5501,219.72,219.66,4.5512]
[1737130435010,4.5504,219.71,219.66,4.5512]
[1737130435210,3.0785,219.76,219.62,15.97857783]
[1737130435611,4.5499,219.73,219.65,10.97857783]
[1737130436106,4.5499,219.73,219.68,4.5509]
[1737130436413,10.97857783,219.79,219.65,10.97857783]
[1737130436611,4.5505,219.7,219.62,15.97857783]
[1737130437101,10.97857783,219.76,219.62,15.97857783]
[1737130437102,4.4799,219.75,219.62,15.97857783]
[1737130438107,4.5503,219.71,219.66,4.5511]
[1737130439214,4.5506,219.7,219.66,4.5511]
[1737130439819,4.5518,219.64,219.59,4.5526]
[1737130440321,10.97857783,219.66,219.59,4.5526]
[1737130440523,10.97857783,219.69,219.59,4.5526]
[1737130441118,4.5519,219.64,219.59,4.5526]
[1737130441821,4.5515,219.65,219.56,15.99857783]
[1737130442220,10.97857783,219.7,219.56,15.99857783]
[1737130442521,4.5518,219.64,219.6,4.5524]
[1737130443016,10.97857783,219.7,219.59,4.5527]
[1737130443221,10.97857783,219.67,219.59,4.5527]
[1737130443427,10.97857783,219.64,219.51,39.61433553]
[1737130443723,10.97857783,219.61,219.51,34.59433553]
[1737130444222,10.97857783,219.61,219.51,27.26683553]
[1737130444429,10.97857783,219.55,219.39,10.97857783]
[1737130444821,10.97857783,219.52,219.42,4.5562]
[1737130445025,10.97857783,219.52,219.38,10.97857783]
[1737130445325,10.97857783,219.55,219.38,10.97857783]
[1737130445720,10.97857783,219.58,219.37,5.04]
[1737130445923,10.97857783,219.58,219.44,10.97857783]
[1737130448129,4.5541,219.53,219.46,4.5554]
[1737130448329,4.5541,219.53,219.44,10.97857783]
[1737130449231,10.97857783,219.55,219.4,10.97857783]
[1737130450233,10.97857783,219.55,219.45,4.5556]
[1737130450730,4.5544,219.51,219.45,4.5556]
[1737130452330,4.5544,219.51,219.46,4.5554]
[1737130455532,4.5544,219.51,219.43,10.97857783]
[1737130456534,4.5544,219.51,219.46,4.5553]
[1737130457633,4.5544,219.51,219.47,4.5552]
[1737130458534,10.97857783,219.55,219.47,4.5552]
[1737130458733,4.5547,219.5,219.4,10.97857783]
[1737130458938,10.97857783,219.52,219.4,10.97857783]
[1737130459127,4.5558,219.45,219.37,10.97857783]
[1737130459328,10.97857783,219.49,219.39,4.5567]
[1737130459737,4.5559,219.44,219.39,4.5567]
[1737130460236,4.5554,219.47,219.37,10.97857783]
[1737130460833,4.5554,219.47,219.42,4.5561]
[1737130461135,4.5554,219.47,219.37,10.97857783]
[1737130462032,4.5554,219.47,219.42,4.5561]
[1737130462637,4.5554,219.47,219.37,10.97857783]
[1737130464039,4.5554,219.47,219.43,4.5561]
[1737130464840,4.5549,219.49,219.45,4.5557]
[1737130465637,4.5551,219.48,219.45,4.5557]
[1737130466341,10.97857783,219.52,219.4,10.97857783]
[1737130466636,4.5548,219.49,219.4,10.97857783]
[1737130467138,4.5548,219.49,219.45,4.5555]
[1737130467339,4.5546,219.5,219.45,4.5555]
[1737130467538,10.97857783,219.52,219.45,4.5555]
[1737130467736,1.5497,219.54,219.47,4.5552]
[1737130467941,3.0347,219.57,219.47,10.97857783]
[1737130468642,10.97857783,219.54,219.43,4.96]
[1737130468840,10.97857783,219.51,219.43,4.96]
[1737130470438,1.5196,219.53,219.43,4.96]
[1737130471340,1.5196,219.53,219.46,4.5554]
[1737130472241,4.554,219.53,219.46,4.5554]
[1737130472438,10.97857783,219.56,219.46,4.5554]
[1737130472640,10.97857783,219.56,219.48,4.5549]
[1737130473345,4.5542,219.53,219.48,4.5549]
[1737130473641,4.5542,219.53,219.49,4.5546]
[1737130476746,4.5548,219.49,219.45,4.5557]
[1737130476948,10.97857783,219.56,219.45,4.5557]
[1737130477146,10.97857783,219.56,219.41,10.97857783]
[1737130477347,4.5542,219.53,219.47,4.5551]
[1737130477549,10.97857783,219.56,219.44,10.97857783]
[1737130478852,4.5544,219.52,219.48,4.5549]
[1737130479044,4.5544,219.52,219.44,10.97857783]
[1737130479746,4.5544,219.51,219.47,4.5551]
[1737130484354,7.01501178,219.51,219.43,7.01501178]
[1737130485054,7.01501178,219.47,219.41,4.94]
[1737130485657,7.01501178,219.47,219.38,7.01501178]
[1737130485846,7.01501178,219.47,219.4,7.01501178]
[1737130486451,7.01501178,219.49,219.42,7.01501178]
[1737130486955,7.01501178,219.49,219.36,4.94]
[1737130487257,7.01501178,219.49,219.42,7.01501178]
[1737130487457,4.555,219.49,219.46,7.01501178]
[1737130487651,6.84476402,219.56,219.48,7.01501178]
[1737130487853,13.8597758,219.56,219.48,7.01501178]
[1737130488156,7.01501178,219.54,219.48,7.01501178]
[1737130488755,13.8597758,219.56,219.48,7.01501178]
[1737130489154,4.5543,219.53,219.49,4.5548]
[1737130489547,4.5543,219.53,219.48,7.01501178]
[1737130490054,4.5543,219.53,219.49,4.5549]
[1737130490457,4.5539,219.55,219.5,7.01501178]
[1737130490956,4.554,219.54,219.5,7.01501178]
[1737130491149,4.554,219.54,219.48,7.01501178]
[1737130492051,4.554,219.54,219.5,4.5547]
[1737130493357,4.5545,219.52,219.48,4.5551]
[1737130493554,7.01501178,219.54,219.47,7.01501178]
[1737130493954,4.5546,219.51,219.47,11.57041178]
[1737130494558,4.5546,219.51,219.48,4.5551]
[1737130494760,4.5544,219.52,219.48,4.5551]
[1737130496563,6.85618892,219.56,219.27,24.7269814]
[1737130496564,7.01501178,219.49,219.27,24.7269814]
[1737130496762,7.01501178,219.41,219.32,7.01501178]
[1737130497059,4.5571,219.39,219.34,7.01501178]
[1737130497255,7.01501178,219.4,219.32,11.57351178]
[1737130497857,4.5562,219.44,219.32,11.57351178]
[1737130498058,7.01501178,219.42,219.34,7.01501178]
[1737130499161,4.5572,219.39,219.34,7.01501178]
[1737130499560,4.5572,219.39,219.33,4.5583]
[1737130499856,4.5573,219.38,219.33,4.5583]
[1737130501864,10.97245654,219.42,219.3,10.97245654]
[1737130502165,10.97245654,219.42,219.29,1.5725]
[1737130502355,4.5575,219.37,219.29,6.1316]
[1737130502563,10.97245654,219.42,219.29,1.5725]
[1737130502858,10.97245654,219.42,219.28,3.1369]
[1737130503055,6.41596728,219.46,219.3,4.5588]
[1737130503254,10.97245654,219.42,219.3,4.5588]
[1737130503458,10.97245654,219.42,219.28,3.1369]
[1737130503766,4.5582,219.34,219.29,4.5589]
[1737130505061,10.97245654,219.39,219.26,4.98]
[1737130505262,10.97245654,219.36,219.24,15.95245654]
[1737130505462,10.97245654,219.36,219.24,10.97245654]
[1737130505664,4.5592,219.29,219.24,10.97245654]
[1737130505869,4.5592,219.29,219.25,4.5598]
[1737130506159,4.5591,219.3,219.25,4.5598]
[1737130506359,1.5214,219.38,219.23,4.5603]
[1737130506559,10.97245654,219.35,219.23,4.5603]
[1737130506956,10.97245654,219.32,219.21,1.5729]
[1737130507160,3.0469,219.37,219.21,1.5729]
[1737130507360,10.97245654,219.34,219.21,1.5729]
[1737130507566,4.5592,219.31,219.21,1.5729]
[1737130507768,10.97245654,219.34,219.24,4.5604]
[1737130508158,4.5597,219.28,219.24,4.5604]
[1737130508364,10.97245654,219.31,219.23,4.5606]
[1737130508861,4.5596,219.28,219.23,4.5606]
[1737130509660,10.97245654,219.31,219.23,4.5606]
[1737130510161,4.5598,219.28,219.24,4.5603]
[1737130511069,3.0469,219.37,219.07,10.97245654]
[1737130511070,10.97245654,219.27,219.07,10.97245654]
[1737130511261,10.97245654,219.22,219.07,12.47045654]
[1737130511461,4.5602,219.25,219.17,4.5618]
[1737130511662,4.5602,219.25,219.13,10.97245654]
[1737130511860,1.5233,219.27,219.14,1.5231]
[1737130512069,1.5233,219.27,219.15,5.06]
[1737130512264,4.5605,219.24,219.15,6.6228]
[1737130513362,10.97245654,219.29,219.16,12.46725654]
[1737130513569,12.48665654,219.36,219.2,10.97245654]
[1737130513768,0.73746025,219.35,219.26,4.5599]
[1737130513970,12.48665654,219.36,219.26,4.5599]
[1737130516176,4.559,219.31,219.26,4.5599]
[1737130516677,12.48665654,219.36,219.26,4.5599]
[1737130516872,4.5586,219.33,219.26,4.5599]
[1737130517073,10.97245654,219.33,219.22,4.5607]
[1737130517376,10.97245654,219.33,219.17,10.97245654]
[1737130517571,1.5142,219.36,219.17,10.97245654]
[1737130517572,10.97245654,219.3,219.17,10.97245654]
[1737130517773,10.97245654,219.3,219.16,6.5348]
[1737130517974,10.97245654,219.27,219.16,6.5348]
[1737130518579,4.5613,219.21,219.16,6.0567]
[1737130518883,10.97245654,219.24,219.14,1.5231]
[1737130519085,10.97245654,219.24,219.12,5.04]
[1737130519280,10.97245654,219.24,219.15,4.5622]
[1737130519886,4.5612,219.21,219.16,4.5621]
[1737130520584,4.5612,219.21,219.12,5.04]
[1737130520788,10.97245654,219.3,219.14,10.97245654]
[1737130520990,10.97245654,219.3,219.17,10.97245654]
[1737130521184,4.5602,219.26,219.21,4.5609]
[1737130521387,12.43165654,219.32,219.17,10.97245654]
[1737130521687,12.43165654,219.32,219.18,1.5597]
[1737130521884,4.5598,219.28,219.23,4.5606]
[1737130522186,12.43165654,219.32,219.23,4.5606]
[1737130522889,4.5593,219.3,219.23,4.5606]
[1737130523085,12.43165654,219.32,219.23,4.5606]
[1737130523487,4.56,219.26,219.22,4.5608]
[1737130524581,4.56,219.26,219.18,1.5597]
[1737130524793,4.5607,219.23,219.18,1.5597]
[1737130524990,10.97245654,219.28,219.14,16.01245654]
[1737130525283,4.561,219.22,219.14,5.04]
[1737130525887,4.561,219.22,219.18,4.5615]
[1737130526482,4.5604,219.25,219.2,4.5612]
[1737130526687,12.43165654,219.32,219.19,10.97245654]
[1737130527085,12.43165654,219.32,219.2,1.5283]
[1737130527389,202.82558995,219.4,219.26,10.97245654]
[1737130527390,200.11804649,219.4,219.26,10.97245654]
[1737130527589,1.4519,219.39,219.26,10.97245654]
[1737130528689,4.5581,219.36,219.26,10.97245654]
[1737130529092,4.5578,219.37,219.33,4.5585]
[1737130529291,10.97245654,219.43,219.32,10.97245654]
[1737130529486,0.7371906,219.42,219.32,10.97245654]
[1737130529688,10.97245654,219.43,219.32,10.97245654]
[1737130530086,4.5571,219.4,219.35,4.5581]
[1737130530285,1.4519,219.45,219.32,15.99245654]
[1737130530482,1.4519,219.45,219.35,10.97245654]
[1737130530786,1.4969,219.48,219.35,10.97245654]
[1737130531186,10.97245654,219.49,219.38,10.97245654]
[1737130531393,51.32018166,219.51,219.37,17.54253993]
[1737130532091,4.5555,219.48,219.37,17.54253993]
[1737130532294,193.63378995,219.54,219.37,17.54253993]
[1737130532690,4.5549,219.51,219.37,17.54253993]
[1737130532890,3.56258169,219.56,219.41,17.54253993]
[1737130533089,3.56258169,219.56,219.42,6.5159]
[1737130533487,206.68812988,219.59,219.43,2.908]
[1737130533892,2.9693,219.6,219.45,17.54253993]
[1737130534083,4.5538,219.57,219.51,4.5548]
[1737130534282,1.5236,219.6,219.45,17.54253993]
[1737130534588,4.5532,219.59,219.45,17.54253993]
[1737130534892,1.5236,219.6,219.46,17.54253993]
[1737130535591,4.5534,219.58,219.46,17.54253993]
[1737130536892,4.5534,219.58,219.53,4.5544]
[1737130537089,17.54253993,219.64,219.51,5.02]
[1737130537289,4.5531,219.6,219.51,5.02]
[1737130537491,4.5531,219.6,219.52,1.577]
[1737130537790,4.5527,219.62,219.52,1.577]
[1737130538095,4.5527,219.62,219.53,2.9219]
[1737130539091,4.5527,219.62,219.56,4.5537]
[1737130539888,1.4957,219.67,219.54,17.54253993]
[1737130540097,1.4957,219.67,219.53,2.9219]
[1737130540690,17.54253993,219.64,219.52,1.577]
[1737130540889,17.54253993,219.64,219.47,5.0]
[1737130541396,4.5537,219.57,219.51,4.5547]
[1737130541595,17.54253993,219.64,219.47,5.0]
[1737130541987,4.5535,219.58,219.52,4.5544]
[1737130542292,4.5535,219.58,219.47,5.0]
[1737130543299,17.54253993,219.64,219.47,5.0]
[1737130543492,4.5531,219.6,219.47,5.0]
[1737130543695,4.5531,219.6,219.48,17.54253993]
[1737130543892,17.54253993,219.64,219.48,17.54253993]
[1737130544997,4.5532,219.59,219.52,4.5544]
[1737130545297,4.5532,219.59,219.48,17.54253993]
[1737130546187,17.54253993,219.64,219.48,17.54253993]
[1737130547092,4.5533,219.59,219.54,4.5541]
[1737130547288,17.54253993,219.65,219.48,17.54253993]
[1737130547801,4.5527,219.62,219.57,4.5535]
[1737130547998,1.4957,219.67,219.52,17.54253993]
[1737130548196,1.4957,219.67,219.53,1.4984]
[1737130548390,4.5519,219.65,219.61,4.5526]
[1737130548693,1.4957,219.67,219.61,4.5526]
[1737130548892,17.54253993,219.73,219.56,22.52253993]
[1737130549094,0.73608509,219.72,219.56,4.98]
[1737130549296,17.54253993,219.73,219.56,4.98]
[1737130549597,17.54253993,219.73,219.63,4.5521]
[1737130549598,4.5513,219.68,219.63,4.5521]
[1737130549795,4.5513,219.68,219.56,4.98]
[1737130549991,17.54253993,219.73,219.56,4.98]
[1737130550197,4.551,219.7,219.56,4.98]
[1737130551798,17.54253993,219.73,219.56,4.98]
[1737130551999,4.5508,219.69,219.56,4.98]
[1737130552402,17.54253993,219.73,219.61,4.5523]
[1737130552701,4.5505,219.7,219.59,17.54253993]
[1737130553796,17.54253993,219.73,219.55,17.54253993]
[1737130554002,17.54253993,219.69,219.57,4.98]
[1737130554399,17.54253993,219.69,219.59,4.5527]
[1737130554903,4.5518,219.65,219.6,4.5527]
[1737130555701,4.5518,219.64,219.6,4.5527]
[1737130556111,17.54253993,219.69,219.6,4.5527]
[1737130556406,17.54253993,219.73,219.61,4.5523]
[1737130557109,4.5514,219.67,219.62,4.5522]
[1737130557604,4.5515,219.66,219.57,4.98]
[1737130558301,4.5515,219.66,219.59,4.5527]
[1737130558606,4.5515,219.66,219.57,4.98]
[1737130559504,4.5515,219.66,219.61,4.5523]
[1737130560209,4.5512,219.67,219.62,4.5521]
[1737130560507,1.501,219.75,219.57,22.52253993]
[1737130560809,4.5513,219.67,219.57,22.52253993]
[1737130561311,4.5506,219.7,219.62,4.5521]
[1737130561606,10.94539723,219.72,219.62,4.5521]
[1737130561800,10.94539723,219.72,219.58,10.94539723]
[1737130562004,4.5516,219.65,219.61,4.5523]
[1737130563406,10.94539723,219.72,219.58,10.94539723]
[1737130563808,4.5515,219.66,219.62,4.5522]
[1737130564002,10.94539723,219.72,219.58,10.94539723]
[1737130564003,10.94539723,219.69,219.58,10.94539723]
[1737130564208,10.94539723,219.69,219.57,4.94]
[1737130564511,10.94539723,219.69,219.59,4.5528]
[1737130564906,4.5521,219.63,219.59,4.5528]
[1737130565509,4.5522,219.62,219.58,4.553]
[1737130565807,1.501,219.75,219.53,1.4984]
[1737130565808,10.94539723,219.63,219.53,1.4984]
[1737130566006,4.5528,219.6,219.53,1.4984]
[1737130566218,10.94539723,219.63,219.53,1.4984]
[1737130566708,10.94539723,219.65,219.56,4.5533]
[1737130567504,10.94539723,219.68,219.6,4.5524]
[1737130567705,4.552,219.63,219.55,10.94539723]
[1737130568215,4.553,219.58,219.53,1.4984]
[1737130569515,10.94539723,219.62,219.52,4.94]
[1737130569722,10.94539723,219.62,219.5,10.94539723]
[1737130569723,10.94539723,219.59,219.48,6.3713]
[1737130570015,4.5539,219.54,219.48,6.3713]
[1737130570609,4.5541,219.53,219.48,6.3713]
[1737130570918,4.5541,219.53,219.48,1.4313]
[1737130571310,10.94539723,219.59,219.48,1.4313]
[1737130571514,4.5543,219.54,219.49,4.5552]
[1737130572113,4.5544,219.53,219.48,9.4953]
[1737130572313,10.94539723,219.59,219.42,1.4784]
[1737130572518,189.14558995,219.65,219.42,1.4784]
[1737130572519,10.94539723,219.55,219.42,1.4784]
[1737130572720,10.94539723,219.55,219.44,4.5562]
[1737130573022,10.94539723,219.55,219.43,4.94]
[1737130573314,10.94539723,219.55,219.42,6.4184]
[1737130573315,4.5554,219.47,219.42,6.4184]
[1737130573619,4.5554,219.47,219.41,6.5218]
[1737130574021,4.5554,219.47,219.42,4.5561]
[1737130574222,4.5551,219.49,219.41,6.5218]
[1737130574417,10.94539723,219.49,219.41,4.94]
[1737130574829,4.5559,219.45,219.38,4.94]
[1737130575324,4.5552,219.48,219.38,4.94]
[1737130575523,10.94539723,219.52,219.38,4.94]
[1737130576133,10.94539723,219.52,219.41,4.5564]
[1737130576721,4.5552,219.48,219.38,15.88539723]
[1737130577120,10.94539723,219.52,219.38,15.88539723]
[1737130577326,10.94539723,219.49,219.35,10.94539723]
[1737130577626,10.94539723,219.49,219.35,15.88539723]
[1737130577826,4.5557,219.46,219.41,4.5566]
[1737130578028,4.5557,219.46,219.35,4.94]
[1737130578224,4.5557,219.46,219.36,10.94539723]
[1737130578629,4.5557,219.46,219.39,10.94539723]
[1737130578922,4.5554,219.47,219.39,10.94539723]
[1737130579127,1.4581,219.53,219.39,10.94539723]
[1737130579322,1.4581,219.53,219.44,4.5559]
[1737130580126,4.5551,219.49,219.45,4.5558]
[1737130580525,1.4581,219.53,219.39,10.94539723]
[1737130580725,1.4581,219.53,219.44,4.5558]
[1737130580922,1.4581,219.53,219.39,10.94539723]
[1737130581121,4.5552,219.49,219.45,4.5556]
[1737130581530,4.5552,219.49,219.39,10.94539723]
[1737130582128,4.5552,219.49,219.45,4.5558]
[1737130582329,4.5552,219.48,219.39,10.94539723]
[1737130582629,4.5552,219.48,219.44,4.5558]
[1737130582830,4.555,219.49,219.44,4.5558]
[1737130583334,4.555,219.49,219.45,4.5557]
[1737130584732,189.14558995,219.62,219.48,10.94539723]
[1737130584931,1.5767,219.61,219.48,10.94539723]
[1737130585330,4.5534,219.57,219.53,4.5539]
[1737130585525,1.5767,219.61,219.48,10.94539723]
[1737130585925,10.94539723,219.65,219.51,10.94539723]
[1737130586128,1.4968,219.66,219.54,10.94539723]
[1737130586334,1.4968,219.66,219.55,4.94]
[1737130587026,1.4968,219.66,219.57,10.94539723]
[1737130587225,1.555,219.72,219.57,10.94539723]
[1737130587226,13.99719723,219.72,219.57,10.94539723]
[1737130587433,0.73603821,219.71,219.57,10.94539723]
[1737130587622,4.5516,219.66,219.57,10.94539723]
[1737130588324,4.5516,219.66,219.6,4.5526]
[1737130588529,4.5517,219.65,219.6,4.5526]
[1737130591235,10.94539723,219.69,219.58,4.92]
[1737130591631,4.5511,219.68,219.58,9.473]
[1737130591934,10.94539723,219.69,219.58,4.92]
[1737130593030,4.5522,219.63,219.58,9.4729]
[1737130595034,4.5523,219.62,219.58,9.4729]
[1737130595433,10.94539723,219.69,219.59,4.5529]
[1737130595636,4.5525,219.62,219.59,4.5529]
[1737130595827,4.5525,219.62,219.58,4.92]
[1737130596433,4.5514,219.66,219.58,9.473]
[1737130596633,10.94539723,219.69,219.58,9.473]
[1737130596831,10.94539723,219.69,219.54,10.94539723]
[1737130596832,10.94539723,219.66,219.51,10.94539723]
[1737130597038,4.5537,219.55,219.51,4.5544]
[1737130597240,4.5537,219.55,219.5,4.9]
[1737130597441,10.94539723,219.67,219.47,2.9055]
[1737130597442,10.94539723,219.57,219.47,2.9055]
[1737130597739,10.94539723,219.57,219.44,90.18]
[1737130597939,1.5479,219.61,219.44,90.18]
[1737130598138,10.94539723,219.57,219.44,90.18]
[1737130598845,10.94539723,219.54,219.42,15.84539723]
[1737130599040,4.5549,219.5,219.45,4.5558]
[1737130599744,10.94539723,219.54,219.45,4.5558]
[1737130599948,4.5549,219.5,219.45,4.5558]
[1737130600242,10.94539723,219.57,219.45,10.94539723]
[1737130600638,10.94539723,219.57,219.42,4.9]
[1737130600639,10.94539723,219.57,219.47,4.5553]
[1737130601341,4.5542,219.53,219.48,4.5551]
[1737130601540,10.94539723,219.57,219.48,4.5551]
[1737130602434,4.5537,219.55,219.5,4.5545]
[1737130602636,10.94539723,219.6,219.45,10.94539723]
[1737130603040,4.5539,219.55,219.45,10.94539723]
[1737130603644,4.5539,219.55,219.48,4.5552]
[1737130603847,4.5539,219.55,219.45,10.94539723]
[1737130604341,1.4657,219.62,219.48,10.94539723]
[1737130604945,1.4657,219.62,219.51,10.94539723]
[1737130605342,4.5527,219.6,219.55,4.5536]
[1737130605649,13.94939723,219.66,219.51,10.94539723]
[1737130605850,13.94939723,219.66,219.52,4.9]
[1737130606253,4.5523,219.62,219.57,4.5533]
[1737130606551,4.5523,219.62,219.54,10.94539723]
[1737130607251,4.5523,219.62,219.57,4.5532]
[1737130608450,1.487,219.7,219.59,4.5529]
[1737130608754,1.487,219.7,219.57,10.94539723]
[1737130609056,4.5523,219.62,219.58,4.553]
[1737130609352,1.487,219.7,219.57,10.94539723]
[1737130609850,1.487,219.7,219.6,10.94539723]
[1737130610049,1.487,219.7,219.62,4.5522]
[1737130610953,1.487,219.7,219.57,10.94539723]
[1737130611454,4.5519,219.64,219.59,4.5527]
[1737130611661,10.94539723,219.69,219.57,10.94539723]
[1737130611949,10.94539723,219.66,219.51,10.94539723]
[1737130612153,4.5528,219.6,219.55,4.5537]
[1737130613055,4.5528,219.6,219.52,4.9]
[1737130613557,10.94539723,219.69,219.54,10.94539723]
[1737130613757,10.94539723,219.69,219.58,4.553]
[1737130614156,4.552,219.64,219.58,4.553]
[1737130614354,4.552,219.64,219.57,4.5531]
[1737130614552,10.94539723,219.69,219.55,10.94539723]
[1737130615259,4.5518,219.65,219.55,10.94539723]
[1737130615848,4.5519,219.64,219.59,4.5527]
[1737130618557,4.5519,219.64,219.55,10.94539723]
[1737130619258,4.5516,219.65,219.55,10.94539723]
[1737130619460,4.5516,219.65,219.56,1.5463]
[1737130619659,1.487,219.7,219.56,1.5463]
[1737130619860,4.552,219.64,219.59,4.5527]
[1737130620263,10.94539723,219.68,219.56,1.5463]
[1737130620459,4.5525,219.62,219.56,1.5463]
[1737130620962,10.94539723,219.68,219.55,4.88]
[1737130621259,10.94539723,219.65,219.52,10.94539723]
[1737130621461,10.94539723,219.65,219.52,15.82539723]
[1737130621662,10.94539723,219.65,219.54,4.5538]
[1737130622761,10.94539723,219.65,219.52,10.94539723]
[1737130623066,10.94539723,219.65,219.55,4.5537]
[1737130623456,4.5531,219.59,219.55,4.5537]
[1737130624162,4.5533,219.58,219.52,15.80539723]
[1737130624563,4.5529,219.59,219.55,4.5536]
[1737130624764,4.5529,219.59,219.52,15.80539723]
[1737130625768,4.5529,219.59,219.55,4.5537]
[1737130625969,10.94539723,219.56,219.21,16.70912185]
[1737130626266,17.43869723,219.55,219.38,10.94539723]
[1737130626466,17.43869723,219.55,219.42,4.5564]
[1737130626467,4.5546,219.51,219.42,4.5564]
[1737130626666,10.94539723,219.44,219.29,24.7269814]
[1737130626860,10.94539723,219.44,219.29,10.94539723]
[1737130627058,10.94539723,219.47,219.32,10.94539723]
[1737130627263,1.5635,219.46,219.35,10.94539723]
[1737130627462,1.5635,219.46,219.34,17.54658382]
[1737130628264,4.5562,219.44,219.37,4.5574]
[1737130629067,17.54658382,219.53,219.39,4.5569]
[1737130629269,17.54658382,219.53,219.35,5.0]
[1737130629270,1.5121,219.52,219.35,6.522]
[1737130629465,1.5121,219.52,219.38,17.54658382]
[1737130629667,17.54658382,219.48,219.19,34.63273216]
[1737130629871,17.54658382,219.44,219.28,4.5592]
[1737130630175,17.54658382,219.4,219.22,17.54658382]
[1737130630472,1.5121,219.39,219.24,5.04]
[1737130630867,1.5121,219.39,219.26,4.5597]
[1737130630868,4.5584,219.33,219.26,4.5597]
[1737130631174,1.5121,219.39,219.09,5.3672744]
[1737130631175,17.54658382,219.35,219.09,5.3672744]
[1737130631471,17.54658382,219.35,219.18,17.54658382]
[1737130631668,17.54658382,219.35,219.19,1.5069]
[1737130631970,17.54658382,219.35,219.2,5.24]
[1737130632171,4.5591,219.3,219.23,4.5602]
[1737130632572,4.5587,219.31,219.24,4.56]
[1737130632769,19.05868382,219.39,219.2,5.24]
[1737130632966,19.05868382,219.39,219.21,1.5202]
[1737130633367,19.05868382,219.39,219.25,4.5599]
[1737130634068,19.05868382,219.39,219.21,1.5202]
[1737130634069,19.05868382,219.39,219.27,4.5595]
[1737130634269,19.05868382,219.39,219.22,17.54658382]
[1737130634572,4.5578,219.36,219.29,4.5591]
[1737130634773,19.05868382,219.39,219.29,4.5591]
[1737130634973,19.05868382,219.39,219.23,1.5115]
[1737130635274,17.54658382,219.35,219.23,6.0717]
[1737130635771,17.54658382,219.35,219.21,1.5202]
[1737130636770,4.5588,219.31,219.23,4.5603]
[1737130636970,17.54658382,219.35,219.21,1.5202]
[1737130637379,4.5591,219.3,219.24,4.5602]
[1737130637873,4.5592,219.29,219.24,4.5602]
[1737130638375,17.54658382,219.35,219.24,4.5602]
[1737130639177,4.5592,219.29,219.24,4.5602]
[1737130640572,4.5592,219.29,219.25,4.5599]
[1737130640779,4.5588,219.31,219.25,4.5599]
[1737130640976,19.05868382,219.39,219.29,4.559]
[1737130641475,19.05868382,219.39,219.21,19.06678382]
[1737130642179,4.5581,219.35,219.21,19.06678382]
[1737130642371,19.05868382,219.39,219.21,19.06678382]
[1737130642876,4.5577,219.36,219.31,4.5586]
[1737130643279,4.5579,219.35,219.31,4.5586]
[1737130643476,19.05868382,219.39,219.31,4.5586]
[1737130643680,19.05868382,219.39,219.32,4.5584]
[1737130644577,4.5575,219.37,219.33,4.5582]
[1737130644874,1.5614,219.43,219.33,4.5582]